Cogmind - Beta 14 @@@ ROGUE MODE // 2024.10.05 @ 02:57:56 Player: Null_error Result: Destroyed by G-47 Trooper with Particle Gun Performance ------------- Evolutions (2) 1000 Regions Visited (5) 1000 Robots Destroyed (21) 105 Value Destroyed (597) 597 Prototype IDs (23) 460 Alien Tech Used (0) 0 Bonus (361) 361 TOTAL SCORE: 3523 Bonus ------- Follower Combat Kills 75 Aligned with FarCom 300 Friendly Fire -14 Cogmind --------- Core Integrity 0/550 Matter 115/300 Energy 83/100 System Corruption 3% Temperature Cool (23) Movement Core (200) Ox3 Location -8/Materials Parts ------- > --- POWER (1) -------- (None) > --- PROPULSION (4) --- (None) > --- UTILITY (4) ------ Visual Processing Unit Advanced Visual Processing Unit Modified TNC > --- WEAPON (2) ------- Assault Cannon Assault Cannon > --- INVENTORY (5) ---- High-capacity Storage Unit Core Shielding Core Shielding Beam Rifle Datajack Peak State ------------ > --- POWER ------------ Light Ion Engine > --- PROPULSION ------- Aluminum Leg Carbon-fiber Leg Carbon-fiber Leg Titanium Leg > --- UTILITY ---------- Small Storage Unit Visual Processing Unit Advanced Visual Processing Unit Modified TNC > --- WEAPON ----------- Ion Cannon Mini Grenade Launcher > --- INVENTORY -------- High-capacity Storage Unit Sensor Array Improved Sensor Array Core Shielding Core Shielding Beam Rifle Rocket Launcher Datajack [Rating: 29] Favorites ----------- Power Light Ion Engine Engine Light Ion Engine Power Core Nuclear Core Propulsion Light Treads Treads Light Treads Leg Carbon-fiber Leg Wheel Compact Wheel Flight Unit Flight Unit Utility Small Storage Unit Device Seismic Detector Storage Small Storage Unit Processor Visual Processing Unit Weapon EM Pulse Gun Energy Gun EM Pulse Gun Energy Cannon Ion Cannon Ballistic Gun Light Assault Rifle Ballistic Cannon Assault Cannon Launcher Mini Grenade Launcher Build | -11 -10 -10 -10 -9 -8 ------- Run | Yrd Mat Min Exi Min Mat Slots Evolved 4 | . . . . . 4 Power . | . . . . . . Propulsion 2 | . . . . . 2 Utility 2 | . . . . . 2 Weapon . | . . . . . . Parts Attached 41 | 7 7 1 1 7 18 Power 8 | 1 1 1 . 1 4 Engine 7 | 1 1 1 . 1 3 Core 1 | . . . . . 1 Reactor . | . . . . . . Propulsion 11 | 2 2 . . 3 4 Treads 2 | 1 1 . . . . Leg 4 | . . . . . 4 Wheel 2 | 1 1 . . . . Hover . | . . . . . . Flight 3 | . . . . 3 . Utility 6 | 2 1 . 1 . 2 Device 1 | 1 . . . . . Storage 1 | 1 . . . . . Processor 4 | . 1 . 1 . 2 Hackware . | . . . . . . Protection . | . . . . . . Artifact . | . . . . . . Weapon 16 | 2 3 . . 3 8 Energy Gun 4 | 2 2 . . . . Energy Cannon 1 | . . . . . 1 Ballistic Gun 3 | . . . . 3 . Ballistic Cannon 4 | . . . . . 4 Launcher 4 | . 1 . . . 3 Special Weapon . | . . . . . . Impact Weapon . | . . . . . . Slashing Weapon . | . . . . . . Piercing Weapon . | . . . . . . Special Melee Weapon . | . . . . . . Unidentified Prototypes . | . . . . . . Parts Lost 20 | . 5 . . 1 14 Power 3 | . 1 . . . 2 Propulsion 7 | . 2 . . . 5 Utility 1 | . . . . . 1 Weapon 9 | . 2 . . 1 6 Highest Loss Streak 10 | . 5 . . 1 10 To Critical Strikes 1 | . . . . . 1 Average Slot Usage (%) 84 | . 78 85 85 90 81 Engine 12 | . 14 14 14 14 7 Treads 10 | . 13 14 14 9 . Leg 4 | . . . . . 23 Flight 3 | . . . . 10 4 Device 1 | . 8 . . . . Storage 12 | . 14 14 14 14 8 Processor 14 | . 5 14 14 14 22 Energy Gun 17 | . 20 28 28 9 . Energy Cannon 1 | . . . . . 6 Ballistic Gun 4 | . . . . 18 1 Peak Build Rating 29 | 5 7 8 12 13 29 Average Rating 11 | 3 5 7 9 12 22 On Entrance 7 | . 5 7 8 12 13 Naked Turns . | . . . . . . Heaviest Build 18 | 14 13 12 12 13 18 Greatest Support 57 | 20 16 3 3 8 57 Greatest Overweight (x) 4 | 4 4 3 3 4 4 Average Overweight (x) 2 | 1 3 3 3 2 . Largest Inventory Capacity 8 | 8 8 8 8 8 8 Average Capacity 7 | 6 8 8 8 8 7 Most Carried 8 | 5 6 8 8 8 8 Average Carried 6 | 2 3 7 7 7 6 Final Capacity 8 | 8 8 8 8 8 5 Final Carried 8 | 5 6 8 8 8 5 Class Distribution -------------------- 76% | Mutant 11% | Scavenger-Mutant 5% | Skirmisher 5% | Scavenger-Skirmisher Dominant Class ---------------- Mutant | -10/Materials Mutant | -10/Mines Mutant | -10/Exiles Mutant | -9/Mines Skirmisher | -8/Materials Resources | -11 -10 -10 -10 -9 -8 ----------- Run | Yrd Mat Min Exi Min Mat Matter Collected 666 | 161 140 152 10 84 119 Remotely . | . . . . . . Salvage Created 626 | 13 201 92 . 51 269 Parts 39 | 4 11 9 . 5 10 Haulers Intercepted 1 | . 1 . . . . Recyclers Shooed 3 | . 2 . . . 1 Parts Field Recycled . | . . . . . . Retrieved Matter . | . . . . . . Parts Self-Destructed . | . . . . . . Prevented . | . . . . . . Kills | -11 -10 -10 -10 -9 -8 ------- Run | Yrd Mat Min Exi Min Mat Combat Hostiles Destroyed 16 | . 4 3 . 3 6 Guns 7 | . 1 3 . 3 . Cannons 4 | . . . . . 4 AOE 4 | . 2 . . . 2 Classes Destroyed 10 | 1 3 2 . . 4 Builder 1 | . . . . . 1 Tunneler 1 | 1 . . . . . Hauler 1 | . 1 . . . . Recycler 1 | . . . . . 1 Watcher 1 | . 1 . . . . Swarmer 5 | . . 2 . 3 . Grunt 7 | . 4 . . . 3 Brawler 1 | . . . . . 1 Sentry 1 | . . 1 . . . Hunter 2 | . . . . . 2 Best Kill Streak 7 | 1 3 1 . 3 7 Combat Bots Only 5 | . 3 1 . 3 5 Max Kills in Single Turn 2 | 1 1 1 . 1 2 Gunslinging . | . . . . . . Exploded 2 | . 1 . . . 2 Melee . | . . . . . . Uniques/NPCs Destroyed . | . . . . . . Combat | -11 -10 -10 -10 -9 -8 -------- Run | Yrd Mat Min Exi Min Mat Hostile Shots Fired 236 | . 65 11 . 27 133 Missed 68 | . 15 5 . 8 40 Damage Taken 2720 | . 683 74 . 139 1824 Core 755 | . 166 21 . 14 554 Absorbed by Shields . | . . . . . . Core Remaining (%) 59 | 100 . . . 19 . Volleys Fired 77 | 5 26 5 . 9 32 Largest 2 | 1 2 2 . 2 2 Hottest 93 | 50 90 80 . 63 93 Shots Fired 112 | 5 32 10 . 16 49 Gun 59 | 5 28 10 . 16 . Cannon 40 | . . . . . 40 Launcher 13 | . 4 . . . 9 Special . | . . . . . . Kinetic 24 | . . . . 7 17 Thermal 43 | 5 15 . . . 23 Explosive 13 | . 4 . . . 9 Electromagnetic 32 | . 13 10 . 9 . Robot Hit Streak 8 | 2 8 4 . 3 7 Robot Miss Streak 6 | 2 2 1 . 2 6 Penetration Max . | . . . . . . Secondary Targets 2 | . . . . 2 . Max Gunslinging Chain 1 | . . . . 1 . Shots Hit Robots 58 | 3 22 6 . 8 19 Core Hits 37 | 3 9 5 . 3 17 Critical Kills . | . . . . . . Critical Parts Destroyed . | . . . . . . Critical Strikes 3 | . 3 . . . . Burn 3 | . 3 . . . . Melee Attacks . | . . . . . . Impact . | . . . . . . Slashing . | . . . . . . Piercing . | . . . . . . Sneak Attacks . | . . . . . . Combat Hostiles . | . . . . . . Follow-up Attacks . | . . . . . . Damage Inflicted 1533 | 40 481 67 . 115 830 Guns 467 | 38 252 67 . 110 . Cannons 376 | . . . . . 376 Explosions 683 | . 229 . . . 454 Melee . | . . . . . . Ramming 7 | 2 . . . 5 . Kinetic 213 | . . . . 44 169 Thermal 345 | 38 100 . . . 207 Explosive 683 | . 229 . . . 454 Electromagnetic 285 | . 152 67 . 66 . Impact . | . . . . . . Slashing . | . . . . . . Piercing . | . . . . . . Highest Corruption 3 | . . . . . 3 Average Corruption 3 | . . . . . 3 Corruption Purged . | . . . . . . Corruption Blocked . | . . . . . . Effects 5 | . . . . . 5 Message Errors 1 | . . . . . 1 Matter Fused 2 | . . . . . 2 Data Loss (minor) 2 | . . . . . 2 Overload Shots . | . . . . . . Overflow Damage 6 | . 4 . . . 2 Projectiles . | . . . . . . Explosions 6 | . 4 . . . 2 Melee . | . . . . . . Knockbacks . | . . . . . . Impact . | . . . . . . Kinetic . | . . . . . . Secondary . | . . . . . . Self-Inflicted Damage 120 | . 35 . . 2 83 Shots 5 | . 2 . . . 3 Rammed 4 | 2 1 . . 1 . Targets Rammed 4 | 2 1 . . 1 . Kicked . | . . . . . . Crushed . | . . . . . . Highest Temperature 165 | 50 165 27 . 21 67 Average Temperature 28 | 26 46 12 . 12 18 Received Heat Transfer 759 | . 363 18 . . 378 Siege Activations . | . . . . . . Robots Corrupted 1 | . 1 . . . . Combat Hostiles 1 | . 1 . . . . Parts Fried . | . . . . . . Impact Corruptions . | . . . . . . Robots Melted . | . . . . . . Combat Hostiles . | . . . . . . Parts Melted 3 | . 2 . . . 1 Heat Transferred 962 | 111 518 . . . 333 Parts Sabotaged . | . . . . . . Parts Stolen . | . . . . . . Parts Stripped . | . . . . . . Power Chain Reactions . | . . . . . . Alert | -11 -10 -10 -10 -9 -8 ------- Run | Yrd Mat Min Exi Min Mat Peak Influence 255 | 5 182 255 . 60 240 Initial 70 | . 3 70 . . . Average 76 | 1 98 111 . 1 123 Maximum Alert Level 1 | . . 1 . . 1 Low Security (%) 92 | 100 100 98 . 100 68 Level 1 7 | . . 1 . . 31 Level 2 . | . . . . . . Level 3 . | . . . . . . Level 4 . | . . . . . . Level 5 . | . . . . . . High Security . | . . . . . . Max Security . | . . . . . . Squads Dispatched 4 | . 2 . . . 2 Investigation . | . . . . . . Extermination . | . . . . . . Reinforcement 4 | . 2 . . . 2 Assault . | . . . . . . Garrison . | . . . . . . Intercept . | . . . . . . Searches Triggered . | . . . . . . Construction Impeded . | . . . . . . Haulers Reinforced . | . . . . . . Active Scanning Responses . | . . . . . . Cargo Convoy Interrupts . | . . . . . . Stealth | -11 -10 -10 -10 -9 -8 --------- Run | Yrd Mat Min Exi Min Mat Distress Signals 3 | . 2 . . . 1 Communications Jammed . | . . . . . . Distress Signals . | . . . . . . Times Spotted 41 | . 9 8 . 4 20 Peak Tracking Total 9 | . 6 3 . 4 9 Tactical Retreats . | . . . . . . Traps | -11 -10 -10 -10 -9 -8 ------- Run | Yrd Mat Min Exi Min Mat Traps Triggered . | . . . . . . Indirectly . | . . . . . . Trap Hack Attempts . | . . . . . . Triggered . | . . . . . . Disarmed . | . . . . . . Reprogrammed . | . . . . . . Reused . | . . . . . . Traps Extracted . | . . . . . . Installed . | . . . . . . Triggered . | . . . . . . Machines | -11 -10 -10 -10 -9 -8 ---------- Run | Yrd Mat Min Exi Min Mat Machines Disabled 5 | . 2 2 . . 1 Max in Single Turn 1 | . 1 1 . . 1 Machines Repaired . | . . . . . . Machines Dismantled . | . . . . . . Machines Sabotaged . | . . . . . . Overloaded Fab Kills . | . . . . . . Hacking | -11 -10 -10 -10 -9 -8 --------- Run | Yrd Mat Min Exi Min Mat Machines Accessed 3 | . 1 . 2 . . Terminals 1 | . 1 . . . . Fabricators . | . . . . . . Repair Stations . | . . . . . . Recycling Units . | . . . . . . Scanalyzers . | . . . . . . Garrison Access . | . . . . . . Total Hacks 4 | . 2 . 2 . . Successful 4 | . 2 . 2 . . Failed . | . . . . . . Catastrophic . | . . . . . . Database Lockouts . | . . . . . . Manual 1 | . . . 1 . . Terminals 2 | . 2 . . . . Fabricators . | . . . . . . Repair Stations . | . . . . . . Recycling Units . | . . . . . . Scanalyzers . | . . . . . . Garrison Access . | . . . . . . Terminal Hacks 4 | . 2 . 2 . . Record 1 | . . . 1 . . Alert Level 1 | . 1 . . . . Locate Traps 1 | . 1 . . . . Derelict Proto ID Bank 1 | . . . 1 . . Fabricator Hacks . | . . . . . . Repair Station Hacks . | . . . . . . Recycling Unit Hacks . | . . . . . . Scanalyzer . | . . . . . . Garrison Access Hacks . | . . . . . . Unauthorized Hacks . | . . . . . . Terminals . | . . . . . . Fabricators . | . . . . . . Repair Stations . | . . . . . . Recycling Units . | . . . . . . Scanalyzers . | . . . . . . Garrison Access . | . . . . . . Data Cores Recovered . | . . . . . . Used . | . . . . . . Hacking Detections 1 | . 1 . . . . Full Trace Events . | . . . . . . Feedback Events . | . . . . . . Feedback Blocked . | . . . . . . Robot Schematics Acquired . | . . . . . . Robots Built . | . . . . . . Authchips . | . . . . . . Time . | . . . . . . Total Robot Build Rating . | . . . . . . Part Schematics Acquired . | . . . . . . Parts Built . | . . . . . . Authchips . | . . . . . . Time . | . . . . . . Total Part Build Rating . | . . . . . . Parts Repaired . | . . . . . . Time . | . . . . . . Parts Recycled . | . . . . . . Recycled Matter . | . . . . . . Retrieved Matter . | . . . . . . Retrieved Components . | . . . . . . Parts Scanalyzed . | . . . . . . Part Schematics Acquired . | . . . . . . Parts Damaged . | . . . . . . Bothacking | -11 -10 -10 -10 -9 -8 ------------ Run | Yrd Mat Min Exi Min Mat Used RIF Installer . | . . . . . . Robots Hacked . | . . . . . . Non-combat . | . . . . . . Combat . | . . . . . . Robot Hacks Applied . | . . . . . . Relay Couplers Released . | . . . . . . Fabnet Peak Effective % . | . . . . . . Robots Rewired . | . . . . . . Allies Hacked . | . . . . . . Hacks Repelled . | . . . . . . Allies | -11 -10 -10 -10 -9 -8 -------- Run | Yrd Mat Min Exi Min Mat Total Allies 3 | . . 3 . . . Largest Group 3 | . . 3 1 . . Highest-Rated Group 70 | . . 70 31 . . Highest-Rated Ally 31 | . . 31 31 . . Total Orders . | . . . . . . Ally Attacks 27 | . . 27 . . . Total Damage 340 | . . 340 . . . Kills 7 | . . 7 . . . Allies Corrupted . | . . . . . . Allies Melted . | . . . . . . Intel | -11 -10 -10 -10 -9 -8 ------- Run | Yrd Mat Min Exi Min Mat Robot Analysis Total . | . . . . . . Derelict Logs Recovered 1 | . . 1 . . . Drone Launches . | . . . . . . Drone Recoveries . | . . . . . . Exploration | -11 -10 -10 -10 -9 -8 ------------- Run | Yrd Mat Min Exi Min Mat Turns Passed 2869 | 172 359 752 455 622 509 Spaces Moved 1509 | 129 134 363 227 330 326 Core 996 | 127 122 363 227 150 7 Treads 1 | 1 . . . . . Legs 271 | . . . . . 271 Wheels 13 | 1 12 . . . . Hover . | . . . . . . Flight 228 | . . . . 180 48 Fastest Speed 50 | 50 100 200 200 117 50 Average Speed 171 | 111 211 200 200 177 121 Slowest Speed 250 | 250 250 200 200 250 250 Overloaded Moves . | . . . . . . Propulsion Burnouts . | . . . . . . Robots Hopped . | . . . . . . Cave-ins Triggered . | . . . . . . Exploration Rate (%) 40 | 6 24 47 62 72 30 Regions Visited 5 Branch Regions 3 Pre-discovered Areas 1 | . . . 1 . . Known Exits Taken . | . . . . . . Unknown Exits Taken 5 | 1 1 1 1 1 . Scrap Searched 3 | . . 1 . 2 . Spaces Dug 1 | . . . . . 1 Terrain Destroyed 80 | . 5 . . . 75 Melee . | . . . . . . Projectile 14 | . . . . . 14 AOE 66 | . 5 . . . 61 Terrain Rammed . | . . . . . . Walls Destroyed . | . . . . . . Machines Disabled . | . . . . . . Actions | -11 -10 -10 -10 -9 -8 --------- Run | Yrd Mat Min Exi Min Mat Total 1669 | 150 176 379 229 350 385 Wait 19 | 3 3 10 . . 3 Move 1504 | 128 133 362 226 329 326 Hop . | . . . . . . Pick Up 14 | 3 6 1 1 1 2 Fast Attach 20 | 7 1 . . 2 10 Attach 8 | . 5 . . . 3 Detach 2 | 2 . . . . . Swap 13 | . 1 1 1 5 5 Drop 8 | . . . 1 3 4 Fire 77 | 5 26 5 . 9 32 Melee . | . . . . . . Ram 4 | 2 1 . . 1 . Kick . | . . . . . . Crush . | . . . . . . Escape Stasis . | . . . . . . Rewire . | . . . . . . Trap . | . . . . . . Miscellaneous . | . . . . . . Route ------- -11/Scrapyard -10/Materials -10/Mines (discovered 2 exits: [*Mat] / *Exi) -10/Exiles (discovered 2 exits: [*Min x2]) -9/Mines -8/Materials History --------- Turn | Location | Event 15 | -11/Scrapyard | Discovered new exit (range 15) 173 | -11/Scrapyard | Entered Materials 307 | -10/Materials | Build established: Mutant 330 | -10/Materials | Core integrity fell below 50% 400 | -10/Materials | Lost 5 parts (1p2n2w) 467 | -10/Materials | Discovered new exit (range 9) 532 | -10/Materials | Entered Mines 653 | -10/Mines | Escorted by a lone wolf Derelict 827 | -10/Mines | Deemed a non-threat by the Exiles lab entrance 827 | -10/Mines | Discovered new exit (range 5) 977 | -10/Mines | Discovered new exit (range 10) 1017 | -10/Mines | Learned Materials trap positions 1284 | -10/Mines | Entered Exiles 1284 | -10/Exiles | Accompanied by 1 ally 1310 | -10/Exiles | Discovered new exit (range 17) 1334 | -10/Exiles | Met 8R-AWN 1368 | -10/Exiles | Met EX-HEX 1420 | -10/Exiles | Met EX-BIN 1448 | -10/Exiles | Aligned with FarCom system 1450 | -10/Exiles | Given EX-Vault access code 1498 | -10/Exiles | Opened EX-Vault 1512 | -10/Exiles | Found Modified TNC 1560 | -10/Exiles | Warned to stay clear of 0b10 Research branches 1616 | -10/Exiles | Met EX-DEC 1626 | -10/Exiles | Learned location of Zion (-7) 1723 | -10/Exiles | Discovered new exit (range 10) 1739 | -10/Exiles | Left Exiles lab with Modified TNC 1739 | -10/Exiles | Entered Mines 1792 | -9/Mines | Found a hidden stash of uninstalled traps 2128 | -9/Mines | Core integrity fell below 20% 2239 | -9/Mines | Discovered new exit (range 16) 2342 | -9/Mines | Received a Rocket Launcher from a helpful Derelict 2361 | -9/Mines | Entered Materials 2361 | -8/Materials | Evolved 4 slots: Propulsion x2, Utility x2 2362 | -8/Materials | Loaded intel: 25 trap records 2526 | -8/Materials | Lost 3 parts (1p1n1w) 2839 | -8/Materials | Core integrity fell below 50% 2862 | -8/Materials | Core integrity fell below 20% 2870 | -8/Materials | Destroyed by G-47 Trooper with Particle Gun Last Messages --------------- 02848_ Knocked back. 02850_ U-05 Engineer lays Concrete. 02854_ H-61 Shepherd calls for reinforcements. 02854_ ALERT: Hostile activity reported, dispatching reinforcements to area. 02855_ U-05 Engineer lays Concrete. 02856_ Assault Cannon destroyed. 02856_ U-05 Engineer lays Concrete. 02857_ Knocked back. 02857_ U-05 Engineer lays Concrete. 02861_ System corrupted: Component data lost. 02861_ U-05 Engineer lays Concrete. 02862_ Penetrated by Slug. 02862_ Assault Cannon destroyed. 02863_ Acquired 7 matter. 02863_ U-05 Engineer lays Concrete. 02864_ Acquired Assault Cannon. 02864_ U-05 Engineer lays Concrete. 02866_ Acquired Assault Cannon. 02867_ U-05 Engineer lays Concrete. Map ----- +----------------------------------------------------+ | ??????????????????????????????# #######+### | | ???????????????????????######## | | ?????????????? / | | ???????????????????????######## | | ??????????????????????????????## ############ | | ????????????????##+#???????????# #??????????? | | ????????????????# ###?????????# #??????????? | | ????????????????# # #?????????# #??????????? | | ????????????????+ ??????????# #??????????? | | ????????????????# #???????????# #??????????? | | ?##????????###### ######??????# #??????????? | | ?#"######### ^ ######## ##########?? | | ?# # % ^ w | | ?# ! =# %##+#####+####### | | ?# # # ????# | | ?# # # """ "T" ??############### | | ?# # # """ #????????????????? | | ?# " # # """ #????????????????? | | ?# + # %% #????????????????? | | ?#! # ####;/########????????????????? | | ??######## %#; Yg #??????????????????? | | ?????#####; ; #??????????????????? | | ?????# ;= % #??????????????????? | | ?????# %[H ]]] ##?????????????????? | | ?????####;;% ;g ;#?????????????????? | | ??????????#####; ] @ ##?????????????????? | | ??????????????#; % #??????????????????? | | ??????????????## % #??????????????????? | | ???????????????####;##;###??????????????????? | | | | | | | | | | | | | | | | | | | | | | | | | | | | | | | | | | | | | | | | | | | +----------------------------------------------------+ Best States ------------- Heat Dissipation 31 Energy Generation 10 Energy Capacity 250 Matter Stores 300 Matter Capacity 300 Sight Range 20 Terrain Scan Density 10 Evasion (%) 55 Recoil Reduction 1 Item Schematics ----------------- None Robot Schematics ------------------ None Fabricated ------------ Nothing Alien Tech Used ----------------- None Achievements -------------- None Challenges ------------ None Game ------ Seed ThermoelectricWarlordMount Manual? 0 Play Time 00:25:08 Cumulative 66.6 hours Start 2024.09.25 @ 01:06:46 End 2024.10.05 @ 02:57:56 Sessions 3 Manual Loads 0 Difficulty Rogue Special Mode None Game No. 72 Rogue 72 Adventurer 0 Explorer 0 Win Type - Total 1 Types 1/0/0/0/0/0/0/0/0 Lore% 25 Gallery% 48 Achievement% 33 Wizard Run 0 Options --------- Layout 2 ASCII 0 Keyboard 1 Movement Numpad Keybinds 0 Fullscreen 1 Font 24/Smallcaps Map View 50x44 Zoom Use 0% Tactical HUD 1 Map Filters NONE Filters LOW_CONTRAST(5,10,15) Steam 1 RUN: 7bac272f-58a8-4c31-a2b2-e58f138c490f